bitfinex/quotes_BTCUSD_20250102
["timestamp","ask_amount","ask_price","bid_price","bid_amount"]
[1735814336477,0.01835072,96829.0,96828.0,0.13356313]
[1735814336694,0.01835072,96829.0,96828.0,0.03456313]
[1735814336904,0.01835072,96829.0,96828.0,0.13356313]
[1735814337120,0.01835072,96829.0,96828.0,0.03456313]
[1735814337326,0.01835072,96829.0,96828.0,0.13356313]
[1735814340580,0.01835072,96829.0,96828.0,0.03456313]
[1735814341151,0.01835072,96829.0,96828.0,0.13356313]
[1735814347266,0.01835072,96829.0,96828.0,0.03456313]
[1735814347691,0.01835072,96829.0,96828.0,0.13356313]
[1735814349792,0.01835072,96829.0,96828.0,0.63356313]
[1735814355595,0.01710314,96829.0,96828.0,0.63356313]
[1735814358319,0.01727394,96829.0,96828.0,0.63356313]
[1735814358715,0.01727394,96829.0,96828.0,0.6130854]
[1735814360131,0.01727394,96829.0,96828.0,0.5140854]
[1735814360336,0.01727394,96829.0,96828.0,0.6130854]
[1735814367577,0.01727394,96829.0,96828.0,0.5140854]
[1735814367919,0.01727394,96829.0,96828.0,0.6130854]
[1735814371181,0.01727394,96829.0,96828.0,0.70571623]
[1735814372201,0.01727394,96829.0,96828.0,0.6130854]
[1735814374567,0.01727394,96829.0,96828.0,0.95567382]
[1735814376043,0.01727394,96829.0,96828.0,0.85667382]
[1735814376248,0.01727394,96829.0,96828.0,0.95567382]
[1735814382147,0.01727394,96829.0,96828.0,0.85667382]
[1735814382355,0.01727394,96829.0,96828.0,0.95567382]
[1735814384596,0.01727394,96829.0,96828.0,0.85667382]
[1735814384939,0.01727394,96829.0,96828.0,0.95567382]
[1735814385946,0.01727394,96829.0,96828.0,0.95607382]
[1735814386977,0.01727394,96829.0,96828.0,0.85707382]
[1735814387175,0.01727394,96829.0,96828.0,0.95607382]
[1735814387462,0.01727394,96829.0,96828.0,0.96620845]
[1735814391099,0.01727394,96829.0,96828.0,0.62362003]
[1735814391636,0.09247394,96829.0,96828.0,0.5144854]
[1735814391761,0.14087394,96829.0,96828.0,0.5144854]
[1735814394846,0.14087394,96829.0,96828.0,0.0144854]
[1735814405885,0.09247394,96829.0,96828.0,0.0144854]
[1735814406093,0.01727394,96829.0,96828.0,0.0144854]
[1735814413200,0.00109402,96829.0,96828.0,0.0144854]
[1735814418208,0.0172764,96829.0,96828.0,0.0144854]
[1735814424461,0.0072764,96829.0,96828.0,0.0144854]
[1735814424630,0.20669367,96831.0,96828.0,0.0144854]
[1735814425034,0.41323967,96831.0,96828.0,0.0144854]
[1735814425452,0.41323967,96831.0,96828.0,0.0054854]
[1735814425668,0.41323967,96831.0,96828.0,0.0144854]
[1735814425968,0.41423967,96831.0,96828.0,0.0144854]
[1735814426165,0.41423967,96831.0,96828.0,0.0094854]
[1735814426367,0.43042151,96831.0,96828.0,0.0094854]
[1735814426596,0.43142151,96831.0,96828.0,0.0144854]
[1735814427073,0.43042151,96831.0,96828.0,0.0094854]
[1735814427247,0.43042151,96831.0,96828.0,0.0124854]
[1735814427454,0.42942151,96831.0,96828.0,0.0034854]
[1735814427723,0.42942151,96831.0,96828.0,0.0094854]
[1735814427990,0.0001708,96829.0,96828.0,0.0094854]
[1735814428196,0.0001708,96829.0,96828.0,0.0034854]
[1735814428400,0.0001708,96829.0,96828.0,0.0124854]
[1735814429112,0.0001708,96829.0,96828.0,0.0034854]
[1735814429285,0.0001708,96829.0,96828.0,0.0004854]
[1735814429481,0.0011708,96829.0,96828.0,0.0094854]
[1735814429699,0.0011708,96829.0,96828.0,0.0124854]
[1735814430966,0.01735269,96829.0,96828.0,0.0124854]
[1735814432251,0.02588678,96829.0,96828.0,0.0124854]
[1735814439028,0.00970489,96829.0,96828.0,0.0124854]
[1735814440762,0.00970489,96829.0,96828.0,0.0123854]
[1735814443468,0.02588674,96829.0,96828.0,0.0123854]
[1735814443917,0.10858674,96829.0,96828.0,0.0123854]
[1735814445504,0.43237306,96829.0,96828.0,0.0123854]
[1735814445718,0.4359317,96829.0,96828.0,0.0123854]
[1735814446346,0.43373472,96829.0,96828.0,0.0123854]
[1735814446465,0.43237306,96829.0,96828.0,0.0123854]
[1735814446670,0.41619121,96829.0,96828.0,0.0123854]
[1735814446875,0.41519121,96829.0,96828.0,0.0003854]
[1735814447301,0.41519121,96829.0,96828.0,0.0053854]
[1735814447504,0.41519121,96829.0,96828.0,0.0003854]
[1735814447704,0.41519121,96829.0,96828.0,0.0043854]
[1735814447930,0.71341693,96829.0,96828.0,0.0043854]
[1735814448141,0.71056655,96829.0,96828.0,0.0013854]
[1735814448344,0.71056655,96829.0,96828.0,0.0033854]
[1735814448797,0.71056655,96829.0,96828.0,0.0023854]
[1735814448962,0.71156655,96829.0,96828.0,0.0023854]
[1735814449362,0.89777056,96829.0,96828.0,0.0023854]
[1735814449562,0.89677056,96829.0,96828.0,0.0023854]
[1735814449908,0.89777056,96829.0,96828.0,0.0023854]
[1735814450141,0.89777056,96829.0,96828.0,0.0003854]
[1735814450345,0.89777056,96829.0,96828.0,0.0023854]
[1735814450551,0.89208685,96829.0,96828.0,0.0023854]
[1735814450678,0.70588284,96829.0,96828.0,0.0003854]
[1735814450879,0.70588284,96829.0,96828.0,0.0034708]
[1735814451317,0.70488284,96829.0,96828.0,0.0034708]
[1735814452409,0.72206849,96829.0,96828.0,0.0034708]
[1735814452791,0.42384277,96829.0,96828.0,0.0034708]
[1735814453238,0.42384277,96829.0,96828.0,0.0004708]
[1735814454101,0.42384277,96829.0,96828.0,0.0024708]
[1735814454326,0.56242328,96829.0,96828.0,0.0024708]
[1735814454534,0.56342328,96829.0,96828.0,0.0004708]
[1735814454756,0.64328509,96829.0,96828.0,0.0024708]
[1735814454934,0.56814842,96829.0,96828.0,0.0024708]
[1735814455653,0.56714842,96829.0,96828.0,8e-07]
[1735814455848,0.56814842,96829.0,96828.0,8e-07]
[1735814457306,0.72671451,96829.0,96828.0,8e-07]
[1735814457540,0.75381642,96829.0,96828.0,8e-07]
[1735814457850,0.206594,96808.0,96801.0,8.54e-05]
[1735814458066,0.39238032,96808.0,96801.0,8.54e-05]
[1735814458680,0.40856788,96808.0,96801.0,8.54e-05]
[1735814458849,0.39238032,96808.0,96801.0,8.54e-05]
[1735814459254,0.39138032,96808.0,96801.0,8.54e-05]
[1735814459453,0.39238032,96808.0,96801.0,8.54e-05]
[1735814460441,0.39238032,96808.0,96807.0,0.0050854]
[1735814460855,0.39238032,96808.0,96807.0,0.0060854]
[1735814461641,0.39238032,96808.0,96807.0,0.0050854]
[1735814461965,0.39238032,96808.0,96807.0,0.0060854]
[1735814462391,0.207594,96808.0,96807.0,0.0050854]
[1735814462598,0.001,96808.0,96807.0,0.0060854]
[1735814462797,0.001,96808.0,96807.0,0.0010854]
[1735814463002,0.001,96808.0,96807.0,0.0050854]
[1735814463838,0.206594,96808.0,96807.0,8.54e-05]
[1735814464007,0.208594,96808.0,96807.0,0.0070854]
[1735814464221,0.208594,96808.0,96807.0,0.0080854]
[1735814464603,0.208594,96808.0,96807.0,0.0070854]
[1735814465002,0.208594,96808.0,96807.0,0.0090854]
[1735814465504,0.22478119,96808.0,96807.0,0.0090854]
[1735814466157,0.32876751,96808.0,96807.0,0.0090854]
[1735814466688,0.52686751,96808.0,96807.0,0.0090854]
[1735814466890,0.60856751,96808.0,96807.0,0.0090854]
[1735814468908,0.59238032,96808.0,96807.0,0.0090854]
[1735814469316,0.61538032,96808.0,96807.0,0.0090854]
[1735814473015,0.59238032,96808.0,96807.0,0.0090854]
[1735814473457,0.6085682,96808.0,96807.0,0.0090854]
[1735814475536,0.4787682,96808.0,96807.0,0.0090854]
[1735814475907,0.37478188,96808.0,96807.0,0.0090854]
[1735814478822,0.358594,96808.0,96807.0,0.0090854]
[1735814479074,0.207594,96808.0,96807.0,0.0090854]
[1735814479316,0.001,96808.0,96807.0,0.0090854]
[1735814479826,0.001,96808.0,96807.0,0.1356854]
[1735814480353,0.206557,96826.0,96807.0,0.33267172]
[1735814480596,0.206557,96826.0,96812.0,0.206584]
[1735814481584,0.206566,96822.0,96809.0,0.206592]
[1735814481788,0.001,96826.0,96807.0,0.23967172]
[1735814481990,0.206573,96818.0,96812.0,0.002]
[1735814482948,0.206567,96821.0,96812.0,0.002]
[1735814483448,0.206567,96821.0,96812.0,0.01]
[1735814483658,0.206573,96818.0,96812.0,0.01]
[1735814483871,0.206573,96818.0,96812.0,0.008]
[1735814484073,0.206573,96818.0,96812.0,0.01]
[1735814484223,0.206573,96818.0,96812.0,0.002]
[1735814484429,0.206573,96818.0,96812.0,0.007]
[1735814484863,0.206573,96818.0,96812.0,0.01]
[1735814485737,0.206573,96818.0,96812.0,0.003]
[1735814486140,0.206573,96818.0,96812.0,0.012]
[1735814488722,0.206573,96818.0,96812.0,0.003]
[1735814489143,0.206573,96818.0,96812.0,0.012]
[1735814489485,0.206567,96821.0,96812.0,0.012]
[1735814489806,0.206567,96821.0,96812.0,0.009]
[1735814490007,0.206567,96821.0,96812.0,0.013]
[1735814490458,0.206567,96821.0,96810.0,0.206589]
[1735814490628,0.206567,96821.0,96812.0,0.009]
[1735814490830,0.206567,96821.0,96812.0,0.012]
[1735814491211,0.206567,96821.0,96812.0,0.009]
[1735814492137,0.01618521,96819.0,96812.0,0.009]
[1735814492970,0.01618521,96819.0,96808.0,0.206594]
[1735814493141,0.01618521,96819.0,96812.0,0.003]
[1735814493345,0.01618521,96819.0,96812.0,0.012]
[1735814493524,0.01618521,96819.0,96812.0,0.009]
[1735814493986,0.01618521,96819.0,96812.0,0.012]
[1735814498392,0.206573,96818.0,96812.0,0.012]
[1735814498696,0.206573,96818.0,96812.0,0.0120854]
[1735814499825,0.206573,96818.0,96812.0,8.54e-05]
[1735814499998,0.206573,96818.0,96812.0,0.0130854]
[1735814500747,0.206573,96818.0,96812.0,0.0090854]
[1735814501191,0.206573,96818.0,96812.0,0.0120854]
[1735814501660,0.206573,96818.0,96812.0,0.0030854]
[1735814501893,0.206573,96818.0,96812.0,0.0120854]
[1735814502092,0.01618525,96817.0,96812.0,0.0120854]
[1735814502301,0.01618525,96817.0,96812.0,0.0030854]
[1735814502544,0.01618525,96817.0,96812.0,0.0120854]
[1735814502750,0.01618525,96817.0,96812.0,0.0090854]
[1735814502953,0.01618525,96817.0,96812.0,0.0040854]
[1735814503410,0.01618525,96817.0,96812.0,0.0130854]
[1735814503640,0.01618525,96817.0,96812.0,8.54e-05]
[1735814504306,0.01618525,96817.0,96812.0,0.0040854]
[1735814505176,0.01618525,96817.0,96812.0,0.0130854]
[1735814505682,0.01618525,96817.0,96812.0,0.0040854]
[1735814505946,0.01618525,96817.0,96812.0,8.54e-05]
[1735814506189,0.01618525,96817.0,96812.0,0.01411677]
[1735814506423,0.01618525,96817.0,96812.0,0.00511677]
[1735814506661,0.206567,96821.0,96812.0,0.00111677]
[1735814506912,0.206567,96821.0,96812.0,0.00511677]
[1735814507145,0.206567,96821.0,96812.0,0.01411677]
[1735814507633,0.001,96824.0,96812.0,0.01411677]
[1735814507841,0.206562,96823.0,96812.0,0.01411677]
[1735814508003,0.206562,96823.0,96812.0,0.01011677]
[1735814508568,0.206562,96823.0,96812.0,0.00111677]
[1735814508900,0.206562,96823.0,96812.0,0.01011677]
[1735814509089,0.206562,96823.0,96812.0,0.00111677]
[1735814509317,0.206562,96823.0,96812.0,0.01311677]
[1735814509763,0.207562,96823.0,96812.0,0.01311677]
[1735814509981,0.207562,96823.0,96812.0,0.01011677]
[1735814510220,0.207562,96823.0,96812.0,0.01311677]
[1735814512069,0.206562,96823.0,96812.0,0.01311677]
[1735814512786,0.207562,96823.0,96812.0,0.01311677]
[1735814513004,0.01618414,96821.0,96812.0,0.01311677]
[1735814513585,0.206568,96820.0,96812.0,0.01311677]
[1735814514038,0.206568,96820.0,96812.0,0.01011677]
[1735814514255,0.206568,96820.0,96812.0,0.01311677]
[1735814515167,0.206568,96820.0,96812.0,0.00411677]
[1735814515427,0.206568,96820.0,96812.0,0.01011677]
[1735814515896,0.206568,96820.0,96812.0,0.00411677]
[1735814516130,0.206568,96820.0,96812.0,0.01311677]
[1735814518977,0.413137,96820.0,96812.0,0.01311677]
[1735814521846,0.206577,96816.0,96812.0,0.0120854]
[1735814522880,0.206577,96816.0,96812.0,8.54e-05]
[1735814523055,0.206577,96816.0,96812.0,0.0040854]
[1735814523266,0.0466,96813.0,96812.0,0.0130854]
[1735814524672,0.0466,96813.0,96812.0,8.54e-05]
[1735814525106,0.0466,96813.0,96812.0,0.0100854]
[1735814525325,0.0466,96813.0,96812.0,0.0020854]
[1735814525326,0.06278628,96813.0,96812.0,0.0020854]
[1735814525562,0.06278628,96813.0,96812.0,0.0070854]
[1735814525794,0.06278628,96813.0,96812.0,0.0090854]
[1735814526478,0.14248628,96813.0,96812.0,0.0090854]
[1735814527418,0.38028632,96813.0,96812.0,0.0090854]
[1735814529283,0.38028632,96813.0,96812.0,8.54e-05]
[1735814529491,0.40328632,96813.0,96812.0,4e-07]
[1735814529700,0.40328632,96813.0,96812.0,0.0010004]
[1735814529922,0.9369682,96813.0,96812.0,0.0010004]
[1735814530289,0.9379682,96813.0,96812.0,0.0010004]
[1735814530465,0.9541569,96813.0,96812.0,0.0010004]
[1735814530921,0.9541569,96813.0,96812.0,4e-07]
[1735814531125,0.72170391,96813.0,96812.0,4e-07]
[1735814531331,0.001,96808.0,96807.0,8e-07]
[1735814531539,0.001,96785.0,96774.0,0.0001708]
[1735814531773,0.283649,96782.0,96774.0,0.0001708]
[1735814532412,0.30083887,96782.0,96774.0,0.0001708]
[1735814533279,0.30083887,96782.0,96781.0,0.0030854]
[1735814534093,0.30083887,96782.0,96781.0,0.0120854]
[1735814534474,0.30083887,96782.0,96781.0,0.0030854]
[1735814534684,0.30083887,96782.0,96781.0,0.0110854]
[1735814535446,0.30083887,96782.0,96781.0,0.0080854]
[1735814535687,0.30083887,96782.0,96781.0,0.0110854]
[1735814538712,0.284649,96782.0,96781.0,0.0110854]
[1735814540662,0.001,96784.0,96781.0,0.0110854]
[1735814540881,0.001,96783.0,96781.0,0.0110854]
[1735814541078,0.001,96782.0,96781.0,0.0110854]
[1735814541510,0.206622,96795.0,96781.0,0.1110854]
[1735814541759,0.206588,96811.0,96781.0,8.54e-05]
[1735814541990,0.206636,96789.0,96781.0,0.0080854]
[1735814542239,0.206636,96789.0,96781.0,0.0020854]
[1735814542480,0.206636,96789.0,96781.0,0.0100854]
[1735814542710,0.206636,96789.0,96781.0,0.0080854]
[1735814542925,0.206636,96789.0,96781.0,8.54e-05]
[1735814543348,0.01619129,96788.0,96781.0,8.54e-05]
[1735814544288,0.206639,96787.0,96781.0,0.0020854]
[1735814544494,0.206639,96787.0,96781.0,0.0080854]
[1735814545328,0.206639,96787.0,96781.0,0.0020854]
[1735814545483,0.206639,96787.0,96781.0,8.54e-05]
[1735814545687,0.206639,96787.0,96781.0,0.0080854]
[1735814545953,0.206639,96787.0,96781.0,0.0020854]
[1735814546249,0.413278,96787.0,96781.0,0.0020854]
[1735814546548,0.206641,96786.0,96781.0,0.0020854]
[1735814547301,0.206641,96786.0,96781.0,8.54e-05]
[1735814547580,0.206641,96786.0,96781.0,0.0030854]
[1735814548001,0.206641,96786.0,96781.0,0.0090854]
[1735814548126,0.206641,96786.0,96781.0,8.54e-05]
[1735814548329,0.206641,96786.0,96781.0,0.0030854]
[1735814548604,0.206641,96786.0,96781.0,0.0120854]
[1735814548764,0.206649,96782.0,96781.0,0.0120854]
[1735814549741,0.206649,96782.0,96781.0,0.0030854]
[1735814550367,0.206649,96782.0,96781.0,8.54e-05]
[1735814550884,0.207649,96782.0,96781.0,0.0030854]
[1735814551099,0.46163532,96782.0,96781.0,0.0030854]
[1735814551304,0.53963532,96782.0,96781.0,0.0120854]
[1735814551925,0.53863532,96782.0,96781.0,0.0090854]
[1735814552128,0.55482828,96782.0,96781.0,0.0010854]
[1735814552584,0.55482828,96782.0,96781.0,0.0050854]
[1735814552791,0.55482828,96782.0,96781.0,0.0010854]
[1735814553293,0.55482828,96782.0,96781.0,0.0030854]
[1735814553478,0.55482828,96782.0,96781.0,0.0020854]
[1735814555265,0.47682828,96782.0,96781.0,0.0020854]
[1735814555493,0.22284196,96782.0,96781.0,0.0020854]
[1735814557513,0.22284196,96782.0,96781.0,0.0010854]
[1735814557713,0.22284196,96782.0,96781.0,0.0040854]
[1735814558051,0.22284196,96782.0,96781.0,8.54e-05]
[1735814558444,0.22284196,96782.0,96781.0,0.0050854]
[1735814558745,0.206649,96782.0,96781.0,0.0050854]
[1735814559577,0.206649,96782.0,96781.0,0.0040854]
[1735814559992,0.206649,96782.0,96781.0,0.0050854]
[1735814560606,0.206649,96782.0,96781.0,0.0010854]
[1735814560841,0.206649,96782.0,96781.0,0.0050854]
[1735814561556,0.356649,96782.0,96781.0,0.0050854]
[1735814563308,0.37284089,96782.0,96781.0,0.0050854]
[1735814564334,0.55852721,96782.0,96781.0,0.0050854]
[1735814564538,0.58152721,96782.0,96781.0,0.0050854]
[1735814564948,0.58152721,96782.0,96781.0,0.0010854]
[1735814565362,0.58152721,96782.0,96781.0,0.0020854]
[1735814565992,0.58152721,96782.0,96781.0,0.0010854]
[1735814567074,0.58252721,96782.0,96781.0,8.54e-05]
[1735814567545,0.58252721,96782.0,96781.0,0.0010854]
[1735814567768,0.56533532,96782.0,96781.0,0.0010854]
[1735814567962,0.56733532,96782.0,96781.0,0.0010854]
[1735814568425,0.56533532,96782.0,96781.0,8.54e-05]
[1735814568635,0.56733532,96782.0,96781.0,8.54e-05]
[1735814569412,0.56933532,96782.0,96781.0,8.54e-05]
[1735814569781,0.56733532,96782.0,96781.0,8.54e-05]
[1735814570216,0.56933532,96782.0,96781.0,8.54e-05]
[1735814572000,0.66186832,96782.0,96781.0,8.54e-05]
[1735814572275,0.67806215,96782.0,96781.0,8.54e-05]
[1735814573094,0.58552915,96782.0,96781.0,8.54e-05]
[1735814577108,0.72434661,96782.0,96781.0,8.54e-05]
[1735814578466,0.70815278,96782.0,96781.0,8.54e-05]
[1735814579281,0.56933532,96782.0,96781.0,8.54e-05]
[1735814581842,0.70852418,96782.0,96781.0,8.54e-05]
[1735814582724,0.173,96781.0,96768.0,4.16e-05]
[1735814582927,0.356677,96769.0,96768.0,4.16e-05]
[1735814583128,0.46066332,96769.0,96768.0,0.00012307]
[1735814584869,0.46066332,96769.0,96768.0,0.00412307]
[1735814585074,0.47685744,96769.0,96768.0,0.00412307]
[1735814586215,0.37287112,96769.0,96768.0,0.00412307]
[1735814586693,0.37287112,96769.0,96768.0,0.00512307]
[1735814588839,0.356677,96769.0,96768.0,0.00512307]
[1735814595461,0.37287135,96769.0,96768.0,0.00512307]
[1735814596305,0.47685767,96769.0,96768.0,0.00512307]
[1735814596720,0.55655767,96769.0,96768.0,0.00512307]
[1735814600107,0.47685767,96769.0,96768.0,0.00512307]
[1735814602568,0.47685767,96769.0,96735.0,0.00057932]
[1735814602569,0.15,96752.0,96735.0,0.00057932]
[1735814602791,0.15,96750.0,96747.0,4.922e-05]
[1735814603016,0.15,96750.0,96748.0,0.041407]
[1735814603259,0.16619562,96750.0,96748.0,0.041407]
[1735814603750,0.35672,96749.0,96748.0,0.041407]
[1735814604616,0.35672,96749.0,96748.0,0.051407]
[1735814604862,0.35672,96749.0,96748.0,0.042407]
[1735814605246,0.35672,96749.0,96747.0,4.922e-05]
[1735814605247,0.15,96748.0,96747.0,4.922e-05]
[1735814605444,0.15,96748.0,96747.0,0.04814922]
[1735814605665,0.15,96748.0,96747.0,0.08955722]
[1735814606105,0.15,96748.0,96747.0,0.16645722]
[1735814606555,0.20772,96749.0,96747.0,0.16645722]
[1735814606777,0.001,96748.0,96747.0,0.17545722]
[1735814606988,0.002,96748.0,96747.0,0.17545722]
[1735814607405,0.20672,96749.0,96747.0,0.08955722]
[1735814607602,0.7836,96748.0,96747.0,4.922e-05]
[1735814607802,0.7836,96748.0,96747.0,0.00904922]
[1735814608557,0.7846,96748.0,96747.0,0.00904922]
[1735814609089,0.7846,96748.0,96747.0,4.922e-05]
[1735814609406,0.7856,96748.0,96747.0,0.00904922]
[1735814609605,0.7856,96748.0,96747.0,4.922e-05]
[1735814609814,0.7846,96748.0,96747.0,4.922e-05]
[1735814610104,0.7846,96748.0,96747.0,0.00504922]
[1735814610320,0.7836,96748.0,96747.0,0.00104922]
[1735814610460,0.7836,96748.0,96747.0,4.922e-05]
[1735814610663,0.7836,96748.0,96747.0,0.00304922]
[1735814610871,0.6836,96748.0,96747.0,0.00104922]
[1735814611073,0.7836,96748.0,96747.0,0.00104922]
[1735814611405,0.7836,96748.0,96747.0,4.922e-05]
[1735814611616,0.7836,96748.0,96747.0,0.00104922]
[1735814612192,0.7836,96748.0,96747.0,0.00404922]
[1735814613581,1.12688639,96748.0,96747.0,0.00404922]
[1735814614037,1.14308327,96748.0,96747.0,0.00404922]
[1735814616258,1.14325427,96748.0,96747.0,0.00404922]
[1735814617833,1.14325427,96748.0,96747.0,0.00342465]
[1735814618830,1.12705739,96748.0,96747.0,0.00342465]
[1735814620299,1.30485739,96748.0,96747.0,0.00342465]
[1735814621315,1.30485739,96748.0,96747.0,0.003]
[1735814622096,0.890356,96732.0,96731.0,0.041412]
[1735814623314,0.90655436,96732.0,96731.0,0.041412]
[1735814624084,0.90755436,96732.0,96731.0,0.049412]
[1735814625467,0.90655436,96732.0,96731.0,0.041412]
[1735814625711,0.90655436,96732.0,96731.0,0.118212]
[1735814625911,0.90755436,96732.0,96731.0,0.126212]
[1735814627063,0.90755436,96732.0,96731.0,0.049412]
[1735814632336,0.90755436,96732.0,96731.0,0.008]
[1735814633984,1.25011857,96732.0,96731.0,0.008]
[1735814634913,0.15,96731.0,96730.0,8.54e-05]
[1735814636576,0.15,96731.0,96730.0,0.0050854]
[1735814638382,0.6836,96731.0,96730.0,0.0050854]
[1735814639719,0.5336,96731.0,96730.0,0.23927172]
[1735814641096,0.09275203,96738.0,96730.0,0.15837172]
[1735814641301,0.09275203,96738.0,96733.0,0.206754]
[1735814641568,0.09275203,96738.0,96734.0,0.10398632]
[1735814641828,0.09275203,96738.0,96735.0,0.0802]
[1735814642092,0.09275203,96738.0,96736.0,0.10398632]
[1735814642291,0.5336,96739.0,96736.0,0.10398632]
[1735814643302,0.5336,96739.0,96736.0,0.10598632]
[1735814643479,0.5336,96739.0,96737.0,0.0796]
[1735814643657,0.5336,96739.0,96738.0,0.10398632]
[1735814644034,0.54979662,96739.0,96738.0,0.10398632]
[1735814644393,0.01619662,96739.0,96738.0,0.10398632]
[1735814645844,0.01619662,96739.0,96738.0,0.11298632]
[1735814646080,0.01719662,96739.0,96738.0,0.11298632]
[1735814646498,0.01619662,96739.0,96738.0,0.11298632]
[1735814646875,0.01719662,96739.0,96738.0,0.11898632]
[1735814648868,0.001,96739.0,96738.0,0.11898632]
[1735814650340,0.207741,96739.0,96738.0,0.11898632]
[1735814652116,0.22393784,96739.0,96738.0,0.11898632]
[1735814652702,0.01719684,96739.0,96738.0,0.11898632]
[1735814654651,0.01719684,96739.0,96738.0,0.10898632]
[1735814654853,0.01619684,96739.0,96738.0,0.09398632]
[1735814655049,0.01619684,96739.0,96738.0,0.10298632]
[1735814655211,0.01619684,96739.0,96738.0,0.09698632]
[1735814655655,0.01619684,96739.0,96738.0,0.10298632]
[1735814655899,0.01719684,96739.0,96738.0,0.10598632]
[1735814656931,0.01719684,96739.0,96738.0,0.09598632]
[1735814658896,0.001,96739.0,96738.0,0.09598632]
[1735814662238,0.001,96739.0,96738.0,0.09607182]
[1735814662445,0.001171,96739.0,96738.0,0.09607182]
[1735814663293,0.01736762,96739.0,96738.0,0.09607182]
[1735814668888,0.001171,96739.0,96738.0,0.09607182]
[1735814672206,0.01736766,96739.0,96738.0,0.09607182]
[1735814678951,0.001171,96739.0,96738.0,0.09607182]
[1735814681925,0.01736764,96739.0,96738.0,0.09607182]
[1735814683354,0.06736764,96739.0,96738.0,0.09607182]
[1735814684264,0.06636764,96739.0,96738.0,0.09307182]
[1735814684483,0.06636764,96739.0,96738.0,0.08407182]
[1735814684670,0.06636764,96739.0,96738.0,0.08707182]
[1735814684905,0.06736764,96739.0,96738.0,0.09607182]
[1735814685092,0.06736764,96739.0,96738.0,0.08707182]
[1735814685434,0.06836764,96739.0,96738.0,0.09607182]
[1735814685633,0.06636764,96739.0,96738.0,0.08707182]
[1735814686042,0.06636764,96739.0,96738.0,0.09307182]
[1735814686043,0.06736764,96739.0,96738.0,0.09307182]
[1735814686266,0.06736764,96739.0,96738.0,0.09607182]
[1735814686469,0.06836764,96739.0,96738.0,0.09607182]
[1735814686897,0.06736764,96739.0,96738.0,0.09307182]
[1735814687233,0.06836764,96739.0,96738.0,0.09607182]
[1735814688797,0.052171,96739.0,96738.0,0.09607182]
[1735814692002,0.06836771,96739.0,96738.0,0.09607182]
[1735814698983,0.052171,96739.0,96738.0,0.09607182]
[1735814699443,0.051171,96739.0,96738.0,0.09307182]
[1735814699862,0.051171,96739.0,96738.0,0.09607182]
[1735814700274,0.051171,96739.0,96738.0,0.09307182]
[1735814700579,0.052171,96739.0,96738.0,0.09607182]
[1735814701951,0.06836751,96739.0,96738.0,0.09607182]
[1735814706060,0.06836751,96739.0,96738.0,0.09563902]
[1735814707836,0.052171,96739.0,96738.0,0.09563902]
[1735814708092,0.002171,96739.0,96738.0,0.04563902]
[1735814708664,0.205309,96741.0,96738.0,0.04563902]
[1735814709588,0.205309,96741.0,96738.0,0.04263902]
[1735814709917,0.206309,96741.0,96738.0,0.04563902]
[1735814710131,0.206309,96741.0,96738.0,0.0120855]
[1735814710132,0.0001708,96739.0,96738.0,0.0120855]
[1735814710304,0.0779708,96739.0,96738.0,0.0120855]
[1735814710880,0.09416769,96739.0,96738.0,8.55e-05]
[1735814711092,0.09416769,96739.0,96738.0,0.0030855]
[1735814711276,0.0779708,96739.0,96738.0,0.0120855]
[1735814711486,0.0779708,96739.0,96738.0,0.0030855]
[1735814711935,0.17172283,96739.0,96738.0,0.0120855]
[1735814712340,0.17172283,96739.0,96738.0,0.0090855]
[1735814712545,0.17072283,96739.0,96738.0,8.55e-05]
[1735814712701,0.17072283,96739.0,96738.0,0.0050855]
[1735814712907,0.32072283,96739.0,96738.0,0.0140855]
[1735814713112,0.2279708,96739.0,96738.0,0.0090855]
[1735814713311,0.2730708,96739.0,96738.0,0.0090855]
[1735814713533,0.2730708,96739.0,96738.0,0.0120855]
[1735814713938,0.2730708,96739.0,96738.0,0.0090855]
[1735814714142,0.2730708,96739.0,96738.0,8.55e-05]
[1735814714350,0.38202028,96739.0,96738.0,0.0030855]
[1735814714554,0.38302028,96739.0,96738.0,0.0120855]
[1735814715602,0.29026825,96739.0,96738.0,0.0120855]
[1735814716002,0.29026825,96739.0,96738.0,0.0090855]
[1735814716176,0.82386825,96739.0,96738.0,0.0090855]
[1735814716383,0.82386825,96739.0,96738.0,0.0120855]
[1735814717195,0.82286825,96739.0,96738.0,0.0030855]
[1735814717763,0.82386825,96739.0,96738.0,0.0120855]
[1735814717965,0.82386825,96739.0,96738.0,0.0020855]
[1735814718906,0.8076708,96739.0,96738.0,0.0020855]
[1735814721345,0.8076708,96739.0,96738.0,0.0021709]
[1735814723427,0.82386855,96739.0,96738.0,0.0021709]
[1735814724030,1.218258,96731.0,96730.0,8.54e-05]
[1735814724261,1.118258,96731.0,96730.0,8.54e-05]
[1735814725233,1.118258,96731.0,96730.0,0.0010854]
[1735814725234,0.968758,96731.0,96730.0,0.0010854]
[1735814725435,0.968758,96731.0,96730.0,0.0100854]
[1735814725436,0.969758,96731.0,96730.0,0.0100854]
[1735814725713,0.969758,96731.0,96730.0,8.54e-05]
[1735814726177,0.891358,96731.0,96730.0,0.0010854]
[1735814726408,0.741358,96731.0,96730.0,0.0010854]
[1735814726636,0.741358,96731.0,96730.0,8.54e-05]
[1735814726836,0.207758,96731.0,96730.0,0.0010854]
[1735814727062,0.208758,96731.0,96730.0,0.0100854]
[1735814727303,0.207758,96731.0,96730.0,0.0010854]
[1735814727553,0.208758,96731.0,96730.0,0.0100854]
[1735814731029,0.742358,96731.0,96730.0,0.0100854]
[1735814734048,0.75855609,96731.0,96730.0,0.0100854]
[1735814738538,0.83485609,96731.0,96730.0,0.0100854]
[1735814739042,0.818658,96731.0,96730.0,0.0100854]
[1735814740820,0.5356,96731.0,96730.0,0.0100854]
[1735814741620,0.5356,96731.0,96730.0,0.11407172]
[1735814741834,0.5356,96731.0,96730.0,0.13707172]
[1735814742037,0.5356,96731.0,96730.0,0.1370823]
[1735814742871,0.51431346,96731.0,96730.0,0.25351098]
[1735814743022,0.0001708,96739.0,96738.0,0.206743]
[1735814743236,0.0001708,96739.0,96738.0,0.33372932]
[1735814743429,0.01636722,96739.0,96738.0,0.33372932]
[1735814744828,0.01736722,96739.0,96738.0,0.34272932]
[1735814745549,0.01836722,96739.0,96738.0,0.34872932]
[1735814747925,0.0021708,96739.0,96738.0,0.34872932]
[1735814750113,0.0021708,96739.0,96738.0,0.36284292]
[1735814751040,0.0021708,96739.0,96738.0,0.15609992]
[1735814752869,0.01836659,96739.0,96738.0,0.15609992]
[1735814756989,0.13636659,96739.0,96738.0,0.15609992]
[1735814758180,0.00031848,96748.0,96739.0,0.206741]
[1735814758390,0.19288919,96763.0,96746.0,0.0453]